fUSD/lending_fUSD_20240109
["ID","MTS","AMOUNT","RATE_DAILY","PERIOD"]
[310927204,1704822661288,-150.0,0.00029753,2]
[310927205,1704822661298,-150.0,0.00029762,2]
[310927206,1704822661307,-150.0,0.00029763,2]
[310927207,1704822661317,-150.0,0.00029766,2]
[310927208,1704822661326,-150.0,0.00029779,2]
[310927209,1704822661336,-150.0,0.00029779,2]
[310927210,1704822661345,-150.0,0.00029823,2]
[310927211,1704822661356,-150.0,0.00029827,2]
[310927212,1704822661365,-150.0,0.00029895,2]
[310927213,1704822661375,-361.78429854,0.00032,2]
[310927214,1704822661798,-155.0,0.00029634,2]
[310927215,1704822661809,-153.0,0.0003,2]
[310927216,1704822661818,-151.79552025,0.0003,2]
[310927217,1704822661841,-1.20447975,0.0003,2]
[310927218,1704822661851,-153.0,0.0003,2]
[310927219,1704822661861,-153.0,0.0003,2]
[310927220,1704822661871,-153.0,0.0003,2]
[310927221,1704822661881,-84.35536036,0.00032,2]
[310927222,1704822661891,-459.33057317,0.00032,2]
[310927223,1704822661901,-459.33057317,0.00032,2]
[310927224,1704822661911,-459.33057317,0.00032,2]
[310927225,1704822661921,-459.33057317,0.00032,2]
[310927226,1704822661932,-459.33057317,0.00032,2]
[310927227,1704822661942,-459.33057317,0.00032,2]
[310927228,1704822661951,-459.33057317,0.00032,2]
[310927229,1704822661961,-459.33057317,0.00032,2]
[310927230,1704822661971,-459.33057317,0.00032,2]
[310927231,1704822661981,-459.33057317,0.00032,2]
[310927232,1704822661991,-459.33057317,0.00032,2]
[310927233,1704822662001,-459.33057317,0.00032,2]
[310927234,1704822662010,-459.33057317,0.00032,2]
[310927235,1704822662020,-459.33057317,0.00032,2]
[310927236,1704822662030,-459.33057317,0.00032,2]
[310927237,1704822662040,-459.33057317,0.00032,2]
[310927238,1704822662050,-459.33057317,0.00032,2]
[310927239,1704822662060,-150.96,0.00034,2]
[310927240,1704822662070,-150.96,0.00034,2]
[310927241,1704822662081,-150.96,0.00034,2]
[310927242,1704822662091,-150.96,0.00034,2]
[310927243,1704822662101,-150.96,0.00034,2]
[310927244,1704822662111,-150.96,0.00034,2]
[310927245,1704822662121,-150.96,0.00034,2]
[310927246,1704822662131,-150.96,0.00034,2]
[310927247,1704822662141,-150.96,0.00034,2]
[310927248,1704822662155,-150.96,0.00034,2]
[310927249,1704822662165,-150.96,0.00034,2]
[310927250,1704822662175,-150.96,0.00034,2]
[310927251,1704822662185,-150.96,0.00034,2]
[310927252,1704822662195,-150.96,0.00034,2]
[310927253,1704822662205,-150.96,0.00034,2]
[310927254,1704822662215,-150.96,0.00034,2]
[310927255,1704822662225,-500.0,0.000349,2]
[310927256,1704822662235,-500.0,0.000349,2]
[310927257,1704822662245,-500.0,0.000349,2]
[310927258,1704822662255,-500.0,0.000349,2]
[310927259,1704822662264,-500.0,0.000349,2]
[310927260,1704822662275,-500.0,0.000349,2]
[310927261,1704822662285,-500.0,0.000349,2]
[310927262,1704822662295,-500.0,0.000349,2]
[310927263,1704822662305,-427.79081723,0.000349,2]
[310927264,1704822662316,-2023061.14488963,0.00036615,2]
[310927265,1704822662325,-620019.76497759,0.000377,4]
[310927266,1704822662335,-263.012374,0.000377,7]
[310927267,1704822662345,-263.012374,0.000377,7]
[310927268,1704822662355,-151.0,0.000377,7]
[310927269,1704822662365,-151.0,0.000377,7]
[310927270,1704822662375,-151.0,0.000377,7]
[310927271,1704822662385,-151.299773,0.000377,7]
[310927272,1704822662395,-151.299773,0.000377,7]
[310927273,1704822662405,-187.286887,0.000377,7]
[310927274,1704822662415,-187.286887,0.000377,7]
[310927275,1704822662425,-172.571717,0.000377,7]
[310927276,1704822662436,-160.925799,0.000377,7]
[310927277,1704822662445,-291.091538,0.000377,7]
[310927278,1704822662455,-291.091538,0.000377,7]
[310927279,1704822662469,-151.0,0.000377,7]
[310927280,1704822662479,-151.0,0.000377,7]
[310927281,1704822662489,-165.957704,0.000377,7]
[310927282,1704822662499,-151.0,0.000377,7]
[310927283,1704822662509,-151.0,0.000377,7]
[310927284,1704822662519,-156.049945,0.000377,7]
[310927285,1704822662529,-151.0,0.000377,7]
[310927286,1704822662539,-151.0,0.000377,7]
[310927287,1704822662549,-203.0,0.00037702,25]
[310927288,1704822662559,-7243.631792,0.00037733,2]
[310927289,1704822662569,-8750.0,0.00037798,2]
[310927290,1704822662579,-1995.76220523,0.00037798,2]
[310927291,1704822662589,-235.49114242,0.00037805,2]
[310927292,1704822662933,-953.67325786,0.00037805,2]
[310927293,1704822662943,-1166.65,0.00037808,10]
[310927294,1704822662952,-1000.0,0.00037808,10]
[310927295,1704822662962,-1000.0,0.00037808,10]
[310927296,1704822662972,-3015.62164,0.00037822,2]
[310927297,1704822662981,-2440.29,0.00037872,2]
[310927298,1704822662990,-360.0,0.00037874,30]
[310927299,1704822663000,-2481.0,0.0003789,3]
[310927300,1704822663009,-2440.29,0.00037898,2]
[310927301,1704822663017,-2440.29,0.00037898,2]
[310927302,1704822663026,-2440.29,0.00037898,2]
[310927303,1704822663035,-2440.29,0.00037898,2]
[310927304,1704822663044,-2440.29,0.00037898,2]
[310927305,1704822663054,-2440.46579324,0.00037898,2]
[310927306,1704822663063,-151.0,0.000379,7]
[310927307,1704822663073,-4479.72,0.000379,2]
[310927308,1704822663083,-1982.35549316,0.000379,2]
[310927309,1704822663093,-614125.626397,0.000379,3]
[310927310,1704822663103,-1000.0,0.000379,7]
[310927311,1704822663114,-44694.8537724,0.00037904,2]
[310927312,1704822663124,-2647.3184316,0.00037904,2]
[310927313,1704822663134,-8750.0,0.00037905,2]
[310927314,1704822663144,-263.012374,0.0003793,7]
[310927315,1704822663157,-263.012374,0.0003793,7]
[310927316,1704822663180,-173766.59442746,0.0003793,2]
[310927317,1704822663201,-3243.62057218,0.0003793,2]
[310927318,1704822663217,-546757.61647517,0.0003793,4]
[310927319,1704822663227,-151.0,0.0003793,7]
[310927320,1704822663237,-151.0,0.0003793,7]
[310927321,1704822663247,-151.0,0.0003793,7]
[310927322,1704822663256,-151.299773,0.0003793,7]
[310927323,1704822663266,-151.299773,0.0003793,7]
[310927324,1704822663276,-187.286887,0.0003793,7]
[310927325,1704822663285,-187.286887,0.0003793,7]
[310927326,1704822663295,-291.091538,0.0003793,7]
[310927327,1704822663304,-291.091538,0.0003793,7]
[310927328,1704822663314,-151.0,0.0003793,7]
[310927329,1704822663323,-193.947414,0.0003793,7]
[310927330,1704822663333,-151.0,0.0003793,7]
[310927331,1704822663343,-151.0,0.0003793,7]
[310927332,1704822663352,-151.0,0.0003793,7]
[310927333,1704822663362,-151.0,0.0003793,7]
[310927334,1704822663371,-150.0,0.00037964,2]
[310927335,1704822663381,-300.0,0.00037964,2]
[310927336,1704822663390,-300.0,0.00037964,2]
[310927337,1704822663399,-300.0,0.00037964,2]
[310927338,1704822663408,-150.0,0.00037964,2]
[310927339,1704822663417,-313.91,0.00037964,2]
[310927340,1704822663426,-159.47,0.00037964,2]
[310927341,1704822663439,-407.65,0.00037964,2]
[310927342,1704822663448,-407.65,0.00037964,2]
[310927343,1704822663457,-150.0,0.00037964,2]
[310927344,1704822663469,-150.0,0.00037964,2]
[310927345,1704822663478,-150.0,0.00037964,2]
[310927346,1704822663488,-150.0,0.00037964,2]
[310927347,1704822663497,-150.0,0.00037964,2]
[310927348,1704822663507,-407.65,0.00037964,2]
[310927349,1704822663516,-313.91,0.00037964,2]
[310927350,1704822663525,-150.0,0.00037964,2]
[310927351,1704822663534,-313.91,0.00037964,2]
[310927352,1704822663544,-407.65,0.00037964,2]
[310927353,1704822663554,-150.0,0.00037964,2]
[310927354,1704822663564,-313.91,0.00037964,2]
[310927355,1704822663573,-150.0,0.00037964,2]
[310927356,1704822663582,-313.91,0.00037964,2]
[310927357,1704822663591,-313.91,0.00037964,2]
[310927358,1704822663600,-407.65,0.00037964,2]
[310927359,1704822663609,-150.0,0.00037964,2]
[310927360,1704822663619,-405.55,0.00037964,2]
[310927361,1704822663628,-312.37,0.00037964,2]
[310927362,1704822663638,-7243.631792,0.00037968,2]
[310927363,1704822663647,-400.0,0.0003797,2]
[310927364,1704822663657,-700.0,0.0003797,2]
[310927365,1704822663667,-200.0,0.00037987,15]
[310927366,1704822663679,-100000.0,0.00038,2]
[310927367,1704822663688,-1500.0,0.00038,7]
[310927368,1704822663698,-500.0,0.00038,30]
[310927369,1704822663708,-1000.0,0.00038,8]
[310927370,1704822663718,-600.0,0.00038,39]
[310927371,1704822663727,-1754.259536,0.00038,2]
[310927372,1704822663737,-1083.031027,0.00038,2]
[310927373,1704822663747,-150.0,0.00038,27]
[310927374,1704822663755,-200.0,0.00038,2]
[310927375,1704822663765,-8750.0,0.00038013,2]
[310927376,1704822663774,-1166.65,0.00038082,12]
[310927377,1704822663784,-1000.0,0.00038082,12]
[310927378,1704822663794,-1028.21639599,0.00038082,12]
[310927379,1704822663803,-1000.0,0.00038118,2]
[310927380,1704822663812,-8750.0,0.0003812,2]
[310927381,1704822663822,-500.0,0.00038136,10]
[310927382,1704822663831,-90582.1334973,0.00038142,2]
[310927383,1704822663840,-188.0,0.00038145,2]
[310927384,1704822663850,-150.0,0.0003815,2]
[310927385,1704822663859,-7243.631792,0.00038203,2]
[310927386,1704822663868,-1995.76220515,0.00038208,2]
[310927387,1704822663877,-206.1416262,0.0003822,7]
[310927388,1704822663887,-11319.65115499,0.00038221,12]
[310927389,1704822663896,-7334.02057606,0.00038221,11]
[310927390,1704822663906,-8750.0,0.00038228,2]
[310927391,1704822663915,-166.59790213,0.00038232,7]
[310927392,1704822663925,-164.0,0.00038255,2]
[310927393,1704822663936,-15732.31132268,0.00038268,12]
[310927394,1704822663946,-1000.0,0.000383,60]
[310927395,1704822663955,-8750.0,0.00038335,2]
[310927396,1704822663965,-1813.67,0.00038352,2]
[310927397,1704822663974,-9160.94645386,0.00038354,12]
[310927398,1704822663983,-14265.73339426,0.00038354,12]
[310927399,1704822663993,-8112.61555082,0.00038354,12]
[310927400,1704822664002,-1166.65,0.00038356,14]
[310927401,1704822664011,-370.8,0.00038356,14]
[310927402,1704822664021,-666.0,0.00038356,2]
[310927403,1704822664030,-153.84,0.00038356,2]
[310927404,1704822664039,-150.39,0.00038356,2]
[310927405,1704822664048,-155.0,0.00038357,2]
[310927406,1704822664058,-217.0,0.0003838,2]
[310927407,1704822664068,-500.0,0.000384,2]
[310927408,1704822664078,-8000.0,0.000384,2]
[310927409,1704822664088,-7243.631792,0.00038438,2]
[310927410,1704822664097,-8750.0,0.00038443,2]
[310927411,1704822664107,-150.0,0.000385,28]
[310927412,1704822664117,-3962.41434848,0.00038509,2]
[310927413,1704822664127,-206.1416262,0.0003861,7]
[310927414,1704822664137,-1995.76220515,0.00038618,2]
[310927415,1704822664146,-206.1416262,0.00038629,7]
[310927416,1704822664155,-1166.65,0.0003863,16]
[310927417,1704822664166,-7243.631792,0.00038673,2]
[310927418,1704822664175,-503.31,0.00038681,2]
[310927419,1704822664188,-500.0,0.00038684,10]
[310927420,1704822664198,-150.0,0.00038699,2]
[310927421,1704822664208,-5115.24531576,0.000387,12]
[310927422,1704822664217,-166.59790213,0.00038758,7]
[310927423,1704822664227,-26676.23668437,0.000388,4]
[310927424,1704822664237,-152.64,0.000388,7]
[310927425,1704822664247,-263.012374,0.000388,7]
[310927426,1704822664256,-263.012374,0.000388,7]
[310927427,1704822664266,-206.1416262,0.00038822,7]
[310927428,1704822664275,-206.1416262,0.00038853,7]
[310927429,1704822664284,-447.4168688,0.000389,30]
[310927430,1704822664294,-1166.65,0.00038904,18]
[310927431,1704822664304,-7243.631792,0.00038909,2]
[310927432,1704822664313,-5046.52181974,0.00038924,2]
[310927433,1704822664322,-166.59790213,0.00038965,7]
[310927434,1704822664332,-1634.5612134,0.00038973,2]
[310927435,1704822664343,-200.0,0.00038987,17]
[310927436,1704822664354,-648.0,0.0003899,3]
[310927437,1704822664363,-152.0,0.00038995,4]
[310927438,1704822664373,-100000.0,0.00039,2]
[310927439,1704822664382,-167.5128,0.00039,4]
[310927440,1704822664391,-974.6561565,0.00039,4]
[310927441,1704822664400,-196.62331505,0.00039,4]
[310927442,1704822664410,-500.0,0.00039,30]
[310927443,1704822664419,-4000.0,0.00039,12]
[310927444,1704822664430,-1000.0,0.00039,30]
[310927445,1704822664439,-271750.65733205,0.00039,2]
[310927446,1704822664449,-1003.919199,0.00039,120]
[310927447,1704822664458,-1000.0,0.00039,9]
[310927448,1704822664472,-1000.0,0.00039,5]
[310927449,1704822664481,-1005.0,0.00039,7]
[310927450,1704822664490,-1000.0,0.00039,5]
[310927451,1704822664499,-10000.0,0.00039,14]
[310927452,1704822664509,-600.0,0.00039,40]
[310927453,1704822664518,-1000.0,0.00039,2]
[310927454,1704822664527,-1000.0,0.00039,2]
[310927455,1704822664536,-172.942819,0.00039,28]
[310927456,1704822664545,-225.5,0.00039,7]
[310927457,1704822664556,-151.0,0.00039,7]
[310927458,1704822664565,-151.0,0.00039,7]
[310927459,1704822664574,-151.299773,0.00039,7]
[310927460,1704822664583,-151.299773,0.00039,7]
[310927461,1704822664592,-187.286887,0.00039,7]
[310927462,1704822664602,-187.286887,0.00039,7]
[310927463,1704822664611,-4358.26,0.00039,3]
[310927464,1704822664620,-4358.26,0.00039,3]
[310927465,1704822664629,-4358.26,0.00039,3]
[310927466,1704822664639,-4358.26,0.00039,3]
[310927467,1704822664649,-4358.26,0.00039,3]
[310927468,1704822664658,-4358.26,0.00039,3]
[310927469,1704822664668,-4358.26,0.00039,3]
[310927470,1704822664680,-4358.26,0.00039,3]
[310927471,1704822664690,-4358.26,0.00039,3]
[310927472,1704822664699,-4358.26,0.00039,3]
[310927473,1704822664708,-4358.26,0.00039,3]
[310927474,1704822664718,-4358.26,0.00039,3]
[310927475,1704822664727,-4358.26,0.00039,3]
[310927476,1704822664736,-4358.26,0.00039,3]
[310927477,1704822664746,-4358.26,0.00039,3]
[310927478,1704822664755,-4358.26,0.00039,3]
[310927479,1704822664764,-4358.26,0.00039,3]
[310927480,1704822664774,-4358.26,0.00039,3]
[310927481,1704822664783,-4358.26,0.00039,3]
[310927482,1704822664792,-4358.26,0.00039,3]
[310927483,1704822664802,-3000.0,0.00039,15]
[310927484,1704822664811,-291.091538,0.00039,7]
[310927485,1704822664821,-291.091538,0.00039,7]
[310927486,1704822664830,-151.0,0.00039,7]
[310927487,1704822664839,-202.0,0.00039,2]
[310927488,1704822664849,-151.0,0.00039,7]
[310927489,1704822664858,-151.0,0.00039,7]
[310927490,1704822664868,-151.0,0.00039,7]
[310927491,1704822664877,-475.68,0.00039,7]
[310927492,1704822664886,-4000.0,0.00039,2]
[310927493,1704822664895,-3000.0,0.0003901,16]
[310927494,1704822664904,-5458.040009,0.0003902,16]
[310927495,1704822664914,-1995.76220515,0.00039028,3]
[310927496,1704822664924,-541.10879603,0.00039058,2]
[310927497,1704822664936,-7243.631792,0.00039144,2]
[310927498,1704822664946,-203.784751,0.00039144,7]
[310927499,1704822664955,-631.76,0.00039176,2]
[310927500,1704822664964,-1166.65,0.00039178,20]
[310927501,1704822664973,-8803.44,0.00039178,2]
[310927502,1704822664982,-206.1416262,0.00039223,7]
[310927503,1704822664991,-500.0,0.00039232,10]
[310927504,1704822665000,-206.1416262,0.00039234,7]
[310927505,1704822665010,-314.88968962,0.00039248,31]
[310927506,1704822665019,-333.0,0.0003926,2]
[310927507,1704822665028,-153.84,0.00039269,2]
[310927508,1704822665037,-1000.0,0.00039306,2]
[310927509,1704822665046,-7243.631792,0.00039379,2]
[310927510,1704822665056,-1995.76220515,0.00039438,4]
[310927511,1704822665068,-1166.65,0.00039452,22]
[310927512,1704822665079,-206.1416262,0.00039458,7]
[310927513,1704822665088,-217.0,0.0003947,2]
[310927514,1704822665098,-7243.631792,0.00039614,2]
[310927515,1704822665107,-1813.67,0.0003963,2]
[310927516,1704822665117,-1000.0,0.00039687,10]
[310927517,1704822665126,-1000.0,0.00039687,10]
[310927518,1704822665136,-1000.0,0.00039687,10]
[310927519,1704822665145,-1000.0,0.00039687,10]
[310927520,1704822665155,-150.0,0.00039699,2]
[310927521,1704822665164,-6080.0,0.000397,2]
[310927522,1704822665174,-1000.0,0.000397,2]
[310927523,1704822665185,-1158.81,0.00039724,2]
[310927524,1704822665195,-500.0,0.00039725,21]
[310927525,1704822665204,-500.0,0.00039725,21]
[310927526,1704822665214,-1166.65,0.00039726,24]
[310927527,1704822665224,-155.0,0.00039727,2]
[310927528,1704822665233,-166.59790213,0.00039747,7]
[310927529,1704822665244,-500.0,0.0003978,10]
[310927530,1704822665253,-980.48609171,0.000398,4]
[310927531,1704822665263,-1995.76220515,0.00039848,6]
[310927532,1704822665272,-7243.631792,0.00039849,2]
[310927533,1704822665282,-350.00008253,0.000399,4]
[310927534,1704822665291,-203.0,0.00039932,29]
[310927535,1704822665301,-2203.5857975,0.00039972,2]
[310927536,1704822665311,-11681.03545077,0.00039985,2]
[310927537,1704822665321,-200.0,0.00039987,19]
[310927538,1704822665331,-441.0,0.0003999,3]
[310927539,1704822665341,-100000.0,0.0004,2]
[310927540,1704822665350,-625.02677176,0.0004,2]
[310927541,1704822665360,-871.75277867,0.0004,2]
[310927542,1704822665369,-2266.84054468,0.0004,4]
[310927543,1704822665378,-2468.12727628,0.0004,4]
[310927544,1704822665388,-1082.93813708,0.0004,4]
[310927545,1704822665397,-839.32594317,0.0004,15]
[310927546,1704822665406,-26813.2673501,0.0004,4]
[310927547,1704822665416,-6572.76692213,0.0004,10]
[310927548,1704822665425,-6278.09481333,0.0004,4]
[310927549,1704822665436,-183.51497465,0.0004,7]
[310927550,1704822665445,-2675.32353174,0.0004,4]
[310927551,1704822665454,-5000.0,0.0004,3]
[310927552,1704822665467,-1500.0,0.0004,60]
[310927553,1704822665476,-1202.5073469,0.0004,4]
[310927554,1704822665485,-3327.59340613,0.0004,4]
[310927555,1704822665496,-1645.0,0.0004,7]
[310927556,1704822665505,-90000.0,0.0004,2]
[310927557,1704822665515,-1000.0,0.0004,60]
[310927558,1704822665525,-17006.94991015,0.0004,2]
[310927559,1704822665534,-4596.7317803,0.0004,4]
[310927560,1704822665544,-499.0,0.0004,10]
[310927561,1704822665553,-1166.65,0.0004,26]
[310927562,1704822665563,-1009.0,0.0004,5]
[310927563,1704822665572,-44721.94108981,0.0004,2]
[310927564,1704822665583,-600.0,0.0004,41]
[310927565,1704822665593,-2355.21839124,0.0004,10]
[310927566,1704822665602,-2000.0,0.0004,120]
[310927567,1704822665613,-1000.0,0.0004,2]
[310927568,1704822665622,-1000.0,0.0004,2]
[310927569,1704822665631,-255.0,0.0004,12]
[310927570,1704822665641,-2257.600052,0.0004,2]
[310927571,1704822665651,-255.0,0.0004,12]
[310927572,1704822665660,-263.012374,0.0004,7]
[310927573,1704822665670,-263.012374,0.0004,7]
[310927574,1704822665679,-255.0,0.0004,12]
[310927575,1704822665688,-255.0,0.0004,12]
[310927576,1704822665697,-255.0,0.0004,12]
[310927577,1704822665706,-255.0,0.0004,12]
[310927578,1704822665716,-255.0,0.0004,12]
[310927579,1704822665725,-27150.0,0.0004,5]
[310927580,1704822665735,-150.0,0.00040005,2]
[310927581,1704822665745,-7243.631792,0.00040084,2]
[310927582,1704822665754,-3962.41434848,0.00040087,5]
[310927583,1704822665763,-158.9376737,0.00040179,7]
[310927584,1704822665773,-153.84,0.00040183,2]
[310927585,1704822665783,-152.64,0.000402,7]
[310927586,1704822665792,-1995.76220515,0.00040258,7]
[310927587,1704822665802,-1166.65,0.00040273,28]
[310927588,1704822665812,-900.0,0.00040316,2]
[310927589,1704822665821,-900.0,0.00040316,2]
[310927590,1704822665831,-900.0,0.00040316,2]
[310927591,1704822665841,-900.0,0.00040316,2]
[310927592,1704822665851,-900.0,0.00040316,2]
[310927593,1704822665860,-900.0,0.00040316,2]
[310927594,1704822665870,-900.0,0.00040316,2]
[310927595,1704822665879,-900.0,0.00040316,2]
[310927596,1704822665889,-900.0,0.00040316,2]
[310927597,1704822665900,-900.0,0.00040316,2]
[310927598,1704822665910,-900.0,0.00040316,2]
[310927599,1704822665919,-900.0,0.00040316,2]
[310927600,1704822665929,-900.0,0.00040316,2]
[310927601,1704822665938,-900.0,0.00040316,2]
[310927602,1704822665948,-900.0,0.00040316,2]
[310927603,1704822665958,-900.0,0.00040316,2]
[310927604,1704822665968,-900.0,0.00040316,2]
[310927605,1704822665978,-900.0,0.00040316,2]
[310927606,1704822665988,-900.0,0.00040316,2]
[310927607,1704822665998,-900.0,0.00040316,2]
[310927608,1704822666007,-900.0,0.00040316,2]
[310927609,1704822666017,-900.0,0.00040316,2]
[310927610,1704822666027,-900.0,0.00040316,2]
[310927611,1704822666036,-900.0,0.00040316,2]
[310927612,1704822666046,-900.0,0.00040316,2]
[310927613,1704822666055,-900.0,0.00040316,2]
[310927614,1704822666065,-900.0,0.00040316,2]
[310927615,1704822666074,-900.0,0.00040316,2]
[310927616,1704822666083,-900.0,0.00040316,2]
[310927617,1704822666093,-900.0,0.00040316,2]
[310927618,1704822666102,-900.0,0.00040316,2]
[310927619,1704822666112,-900.0,0.00040316,2]
[310927620,1704822666121,-900.0,0.00040316,2]
[310927621,1704822666131,-900.0,0.00040316,2]
[310927622,1704822666141,-900.0,0.00040316,2]
[310927623,1704822666149,-900.0,0.00040316,2]
[310927624,1704822666159,-900.0,0.00040316,2]
[310927625,1704822666169,-900.0,0.00040316,2]
[310927626,1704822666179,-900.0,0.00040316,2]
[310927627,1704822666189,-900.0,0.00040316,2]
[310927628,1704822666199,-900.0,0.00040316,2]
[310927629,1704822666209,-900.0,0.00040316,2]
[310927630,1704822666219,-900.0,0.00040316,2]
[310927631,1704822666228,-900.0,0.00040316,2]
[310927632,1704822666238,-900.0,0.00040316,2]
[310927633,1704822666247,-900.0,0.00040316,2]
[310927634,1704822666256,-900.0,0.00040316,2]
[310927635,1704822666266,-900.0,0.00040316,2]
[310927636,1704822666275,-900.0,0.00040316,2]
[310927637,1704822666284,-900.0,0.00040316,2]
[310927638,1704822666293,-900.0,0.00040316,2]
[310927639,1704822666301,-900.0,0.00040316,2]
[310927640,1704822666312,-900.0,0.00040316,2]
[310927641,1704822666322,-900.0,0.00040316,2]
[310927642,1704822666332,-900.0,0.00040316,2]
[310927643,1704822666346,-900.0,0.00040316,2]
[310927644,1704822666356,-900.0,0.00040316,2]
[310927645,1704822666366,-900.0,0.00040316,2]
[310927646,1704822666375,-900.0,0.00040316,2]
[310927647,1704822666385,-900.0,0.00040316,2]
[310927648,1704822666626,-900.0,0.00040316,2]
[310927649,1704822666650,-900.0,0.00040316,2]
[310927650,1704822666660,-900.0,0.00040316,2]
[310927651,1704822666671,-900.0,0.00040316,2]
[310927652,1704822666682,-900.0,0.00040316,2]
[310927653,1704822666693,-900.0,0.00040316,2]
[310927654,1704822666704,-900.0,0.00040316,2]
[310927655,1704822666715,-900.0,0.00040316,2]
[310927656,1704822666725,-900.0,0.00040316,2]
[310927657,1704822666735,-900.0,0.00040316,2]
[310927658,1704822666745,-900.0,0.00040316,2]
[310927659,1704822666756,-900.0,0.00040316,2]
[310927660,1704822666766,-414.0,0.00040316,2]
[310927661,1704822666777,-7243.631792,0.00040319,2]
[310927662,1704822666788,-500.0,0.00040328,10]
[310927663,1704822666800,-260.23093573,0.0004033,7]
[310927664,1704822666810,-219.54,0.00040349,15]
[310927665,1704822666820,-300.0,0.00040352,2]
[310927666,1704822666833,-150.0,0.00040352,2]
[310927667,1704822666844,-150.0,0.00040352,2]
[310927668,1704822666858,-213.0,0.0004048,2]
[310927669,1704822666868,-1000.0,0.00040494,4]
[310927670,1704822666879,-1166.65,0.00040547,30]
[310927671,1704822666905,-7243.631792,0.00040555,2]
[310927672,1704822666923,-217.0,0.0004056,2]
[310927673,1704822666941,-1043.0,0.000406,5]
[310927674,1704822666957,-206.1416262,0.00040658,7]
[310927675,1704822666969,-1995.76220515,0.00040668,9]
[310927676,1704822666979,-333.0,0.00040733,2]
[310927677,1704822666988,-5000.0,0.00040778,3]
[310927678,1704822666998,-206.1416262,0.00040778,7]
[310927679,1704822667008,-2100.000009,0.00040786,15]
[310927680,1704822667029,-7243.631792,0.0004079,2]
[310927681,1704822667038,-206.1416262,0.0004081,7]
[310927682,1704822667047,-1166.65,0.00040821,32]
[310927683,1704822667056,-500.0,0.00040876,10]
[310927684,1704822667066,-1000.0,0.00040878,10]
[310927685,1704822667075,-166.59790213,0.00040881,7]
[310927686,1704822667085,-150.0,0.000409,2]
[310927687,1704822667097,-150.0,0.000409,2]
[310927688,1704822667107,-150.0,0.000409,2]
[310927689,1704822667116,-150.0,0.000409,2]
[310927690,1704822667126,-150.0,0.000409,2]
[310927691,1704822667135,-150.0,0.000409,2]
[310927692,1704822667144,-150.0,0.000409,2]
[310927693,1704822667154,-150.0,0.000409,2]
[310927694,1704822667163,-150.0,0.000409,2]
[310927695,1704822667172,-150.0,0.000409,2]
[310927696,1704822667182,-150.0,0.000409,2]
[310927697,1704822667191,-150.0,0.000409,2]
[310927698,1704822667200,-150.0,0.000409,2]
[310927699,1704822667210,-150.0,0.000409,2]
[310927700,1704822667219,-150.0,0.000409,2]
[310927701,1704822667229,-150.0,0.000409,2]
[310927702,1704822667239,-150.0,0.000409,2]
[310927703,1704822667248,-150.0,0.000409,2]